fUSD/lending_fUSD_20240211
["ID","MTS","AMOUNT","RATE_DAILY","PERIOD"]
[313755693,1707677445806,-200.0,0.00031754,2]
[313755694,1707677445816,-600.0,0.00031763,2]
[313755695,1707677445825,-2521.52255806,0.00031797,2]
[313755696,1707677445834,-185.619402,0.000318,7]
[313755697,1707677445844,-185.619402,0.000318,7]
[313755698,1707677445853,-151.0,0.000318,7]
[313755699,1707677445863,-151.0,0.000318,7]
[313755700,1707677445872,-242.796643,0.000318,7]
[313755701,1707677445882,-242.796643,0.000318,7]
[313755702,1707677445891,-333.775712,0.000318,7]
[313755703,1707677445900,-333.775712,0.000318,7]
[313755704,1707677445909,-310.529724,0.000318,7]
[313755705,1707677445919,-310.529724,0.000318,7]
[313755706,1707677445928,-350.115448,0.000318,7]
[313755707,1707677445937,-350.115448,0.000318,7]
[313755708,1707677445946,-234.196225,0.000318,7]
[313755709,1707677445955,-234.196225,0.000318,7]
[313755710,1707677445964,-309.955609,0.000318,7]
[313755711,1707677445974,-309.955609,0.000318,7]
[313755712,1707677445983,-452.089298,0.000318,7]
[313755713,1707677445992,-452.089298,0.000318,7]
[313755714,1707677446001,-185.414344,0.000318,7]
[313755715,1707677446011,-185.414344,0.000318,7]
[313755716,1707677446021,-1929.541419,0.000318,7]
[313755717,1707677446030,-1929.541419,0.000318,7]
[313755718,1707677446039,-1359.522663,0.000318,7]
[313755719,1707677446049,-151.0,0.000318,7]
[313755720,1707677446059,-1359.522663,0.000318,7]
[313755721,1707677446068,-349.640646,0.000318,7]
[313755722,1707677446077,-349.640646,0.000318,7]
[313755723,1707677446087,-381.385212,0.000318,7]
[313755724,1707677446096,-381.385212,0.000318,7]
[313755725,1707677446105,-375.080313,0.000318,7]
[313755726,1707677446114,-375.080313,0.000318,7]
[313755727,1707677446124,-808.760675,0.000318,7]
[313755728,1707677446133,-808.760675,0.000318,7]
[313755729,1707677446142,-599.409437,0.000318,7]
[313755730,1707677446152,-599.409437,0.000318,7]
[313755731,1707677446161,-512.611865,0.000318,7]
[313755732,1707677446170,-512.611865,0.000318,7]
[313755733,1707677446180,-151.0,0.000318,7]
[313755734,1707677446189,-151.0,0.000318,7]
[313755735,1707677446198,-228.636605,0.000318,7]
[313755736,1707677446207,-228.636605,0.000318,7]
[313755737,1707677446217,-208.558557,0.000318,7]
[313755738,1707677446225,-208.558557,0.000318,7]
[313755739,1707677446235,-151.0,0.000318,7]
[313755740,1707677446244,-215.738843,0.000318,7]
[313755741,1707677446253,-215.738843,0.000318,7]
[313755742,1707677446262,-243.577002,0.000318,7]
[313755743,1707677446272,-243.577002,0.000318,7]
[313755744,1707677446282,-151.0,0.000318,7]
[313755745,1707677446291,-151.0,0.000318,7]
[313755746,1707677446301,-151.0,0.000318,7]
[313755747,1707677446310,-151.0,0.000318,7]
[313755748,1707677446319,-288205.051923,0.000318,3]
[313755749,1707677446329,-151.0,0.000318,7]
[313755750,1707677446338,-1068.930946,0.000318,7]
[313755751,1707677446348,-1068.930946,0.000318,7]
[313755752,1707677446358,-459.130846,0.000318,7]
[313755753,1707677446367,-459.130846,0.000318,7]
[313755754,1707677446377,-151.0,0.000318,7]
[313755755,1707677446387,-151.0,0.000318,7]
[313755756,1707677446396,-9360.766704,0.000318,7]
[313755757,1707677446405,-9360.766704,0.000318,7]
[313755758,1707677446415,-397.927756,0.000318,7]
[313755759,1707677446424,-151.0,0.000318,7]
[313755760,1707677446433,-397.927756,0.000318,7]
[313755761,1707677446443,-2807.818296,0.000318,7]
[313755762,1707677446452,-1190.21307,0.000318,7]
[313755763,1707677446461,-2807.818296,0.000318,7]
[313755764,1707677446470,-1190.21307,0.000318,7]
[313755765,1707677446480,-251.760329,0.000318,7]
[313755766,1707677446489,-251.760329,0.000318,7]
[313755767,1707677446498,-151.0,0.000318,7]
[313755768,1707677446507,-287.738847,0.000318,7]
[313755769,1707677446516,-214.615376,0.000318,7]
[313755770,1707677446526,-151.0,0.000318,7]
[313755771,1707677446541,-214.615376,0.000318,7]
[313755772,1707677446550,-151.0,0.000318,7]
[313755773,1707677446559,-408.33453,0.000318,7]
[313755774,1707677446569,-408.33453,0.000318,7]
[313755775,1707677446578,-9500.0,0.000318,7]
[313755776,1707677446589,-9500.0,0.000318,7]
[313755777,1707677446599,-178.042327,0.000318,7]
[313755778,1707677446608,-178.042327,0.000318,7]
[313755779,1707677446619,-2431.212968,0.000318,7]
[313755780,1707677446629,-2431.212968,0.000318,7]
[313755781,1707677446638,-151.0,0.000318,7]
[313755782,1707677446647,-151.0,0.000318,7]
[313755783,1707677446657,-151.0,0.000318,7]
[313755784,1707677446667,-191.672687,0.000318,7]
[313755785,1707677446676,-191.672687,0.000318,7]
[313755786,1707677446686,-1978.648104,0.000318,7]
[313755787,1707677446697,-1978.648104,0.000318,7]
[313755788,1707677446707,-765.39669,0.000318,7]
[313755789,1707677446716,-264.88455642,0.0003185,4]
[313755790,1707677446725,-150.0,0.00031867,2]
[313755791,1707677446734,-500.0,0.00031885,2]
[313755792,1707677446743,-153.018954,0.000319,2]
[313755793,1707677446753,-1400.0,0.000319,11]
[313755794,1707677446762,-3480.78410027,0.00031912,2]
[313755795,1707677446771,-5000.0,0.00031912,2]
[313755796,1707677446782,-897.0,0.00031912,3]
[313755797,1707677446791,-624.0,0.0003198,120]
[313755798,1707677446800,-1000.0,0.00032,2]
[313755799,1707677446810,-353.4,0.00032,2]
[313755800,1707677446820,-192.05018071,0.00032009,4]
[313755801,1707677446830,-155.40896887,0.00032009,4]
[313755802,1707677446839,-280.97908916,0.00032009,4]
[313755803,1707677446849,-181.59746219,0.00032009,4]
[313755804,1707677446858,-155.0,0.00032009,4]
[313755805,1707677446867,-2357.61480891,0.00032009,4]
[313755806,1707677446876,-200.0,0.00032009,2]
[313755807,1707677446885,-19144.12786605,0.00032009,4]
[313755808,1707677446894,-155.0,0.00032009,4]
[313755809,1707677446903,-206.62735527,0.00032009,4]
[313755810,1707677446913,-355.60856944,0.0003201,2]
[313755811,1707677446922,-3081.86741059,0.0003201,4]
[313755812,1707677446931,-300.02,0.0003201,2]
[313755813,1707677446941,-3313.68237718,0.0003201,2]
[313755814,1707677446951,-157.87586071,0.00032011,4]
[313755815,1707677446961,-2786.97742156,0.00032011,4]
[313755816,1707677446970,-1101.62759997,0.00032012,7]
[313755817,1707677446980,-1457.11882231,0.00032012,7]
[313755818,1707677446991,-8249.18344095,0.00032012,7]
[313755819,1707677447027,-1001.316511,0.00032012,7]
[313755820,1707677447038,-433.82382403,0.00032012,7]
[313755821,1707677447050,-973.33168819,0.00032012,7]
[313755822,1707677447070,-3017.71193135,0.00032012,7]
[313755823,1707677447082,-2972.63468936,0.00032012,7]
[313755824,1707677447094,-3991.39216518,0.00032012,7]
[313755825,1707677447109,-276.76126785,0.00032012,7]
[313755826,1707677447973,-765.39669,0.00031547,7]
[313755827,1707677447983,-250.254054,0.00031547,7]
[313755828,1707677447992,-765.39669,0.000318,7]
[313755829,1707677448001,-250.254054,0.000318,7]
[313755830,1707677448010,-44868.26926379,0.00032012,7]
[313755831,1707677448019,-3444.87469517,0.00032012,5]
[313755832,1707677448029,-1586.71549892,0.00032012,4]
[313755833,1707677448038,-200.0,0.00032012,2]
[313755834,1707677448047,-687.85644639,0.00032012,4]
[313755835,1707677448056,-6539.08069997,0.00032012,4]
[313755836,1707677448065,-9679.81431099,0.00032012,2]
[313755837,1707677448074,-992.81037315,0.00032012,2]
[313755838,1707677448083,-151.0,0.00032012,7]
[313755839,1707677448094,-151.0,0.00032012,7]
[313755840,1707677448103,-151.0,0.00032012,7]
[313755841,1707677448113,-151.0,0.00032012,7]
[313755842,1707677448122,-151.0,0.00032012,7]
[313755843,1707677448131,-151.0,0.00032012,7]
[313755844,1707677448140,-151.0,0.00032012,7]
[313755845,1707677448150,-242.796643,0.00032018,7]
[313755846,1707677448159,-242.796643,0.00032018,7]
[313755847,1707677448168,-333.775712,0.00032018,7]
[313755848,1707677448177,-333.775712,0.00032018,7]
[313755849,1707677448186,-310.529724,0.00032018,7]
[313755850,1707677448195,-310.529724,0.00032018,7]
[313755851,1707677448204,-350.115448,0.00032018,7]
[313755852,1707677448214,-350.115448,0.00032018,7]
[313755853,1707677448222,-234.196225,0.00032018,7]
[313755854,1707677448232,-234.196225,0.00032018,7]
[313755855,1707677448241,-309.955609,0.00032018,7]
[313755856,1707677448250,-309.955609,0.00032018,7]
[313755857,1707677448259,-452.089298,0.00032018,7]
[313755858,1707677448268,-452.089298,0.00032018,7]
[313755859,1707677448279,-185.414344,0.00032018,7]
[313755860,1707677448288,-185.414344,0.00032018,7]
[313755861,1707677448298,-1929.541419,0.00032018,7]
[313755862,1707677448307,-1929.541419,0.00032018,7]
[313755863,1707677448317,-1359.522663,0.00032018,7]
[313755864,1707677448327,-151.0,0.00032018,7]
[313755865,1707677448336,-1359.522663,0.00032018,7]
[313755866,1707677448345,-349.640646,0.00032018,7]
[313755867,1707677448355,-349.640646,0.00032018,7]
[313755868,1707677448364,-381.385212,0.00032018,7]
[313755869,1707677448374,-381.385212,0.00032018,7]
[313755870,1707677448383,-375.080313,0.00032018,7]
[313755871,1707677448394,-375.080313,0.00032018,7]
[313755872,1707677448403,-808.760675,0.00032018,7]
[313755873,1707677448413,-808.760675,0.00032018,7]
[313755874,1707677448422,-599.409437,0.00032018,7]
[313755875,1707677448432,-599.409437,0.00032018,7]
[313755876,1707677448641,-512.611865,0.00032018,7]
[313755877,1707677448651,-512.611865,0.00032018,7]
[313755878,1707677448660,-151.0,0.00032018,7]
[313755879,1707677448670,-151.0,0.00032018,7]
[313755880,1707677448678,-228.636605,0.00032018,7]
[313755881,1707677448687,-228.636605,0.00032018,7]
[313755882,1707677448697,-208.558557,0.00032018,7]
[313755883,1707677448705,-208.558557,0.00032018,7]
[313755884,1707677448714,-151.0,0.00032018,7]
[313755885,1707677448723,-215.738843,0.00032018,7]
[313755886,1707677448732,-215.738843,0.00032018,7]
[313755887,1707677448741,-243.577002,0.00032018,7]
[313755888,1707677448750,-243.577002,0.00032018,7]
[313755889,1707677448758,-151.0,0.00032018,7]
[313755890,1707677448767,-253.873612,0.00032018,7]
[313755891,1707677448778,-151.0,0.00032018,7]
[313755892,1707677448787,-151.0,0.00032018,7]
[313755893,1707677448796,-151.0,0.00032018,7]
[313755894,1707677448805,-1068.930946,0.00032018,7]
[313755895,1707677448814,-1068.930946,0.00032018,7]
[313755896,1707677448823,-459.130846,0.00032018,7]
[313755897,1707677448832,-151.0,0.00032018,7]
[313755898,1707677448841,-459.130846,0.00032018,7]
[313755899,1707677448851,-151.0,0.00032018,7]
[313755900,1707677448860,-9360.766704,0.00032018,7]
[313755901,1707677448869,-9360.766704,0.00032018,7]
[313755902,1707677448878,-397.927756,0.00032018,7]
[313755903,1707677448887,-151.0,0.00032018,7]
[313755904,1707677448896,-397.927756,0.00032018,7]
[313755905,1707677448905,-2807.818296,0.00032018,7]
[313755906,1707677448914,-1190.21307,0.00032018,7]
[313755907,1707677448923,-2807.818296,0.00032018,7]
[313755908,1707677448933,-1190.21307,0.00032018,7]
[313755909,1707677448942,-251.760329,0.00032018,7]
[313755910,1707677448951,-251.760329,0.00032018,7]
[313755911,1707677448960,-151.0,0.00032018,7]
[313755912,1707677448969,-214.615376,0.00032018,7]
[313755913,1707677448979,-151.0,0.00032018,7]
[313755914,1707677448988,-214.615376,0.00032018,7]
[313755915,1707677448997,-151.0,0.00032018,7]
[313755916,1707677449007,-408.33453,0.00032018,7]
[313755917,1707677449016,-408.33453,0.00032018,7]
[313755918,1707677449025,-9500.0,0.00032018,7]
[313755919,1707677449034,-9500.0,0.00032018,7]
[313755920,1707677449043,-178.042327,0.00032018,7]
[313755921,1707677449053,-178.042327,0.00032018,7]
[313755922,1707677449062,-2431.212968,0.00032018,7]
[313755923,1707677449071,-2431.212968,0.00032018,7]
[313755924,1707677449080,-151.0,0.00032018,7]
[313755925,1707677449090,-151.0,0.00032018,7]
[313755926,1707677449100,-151.0,0.00032018,7]
[313755927,1707677449109,-191.672687,0.00032018,7]
[313755928,1707677449118,-191.672687,0.00032018,7]
[313755929,1707677449127,-1978.648104,0.00032018,7]
[313755930,1707677449138,-1978.648104,0.00032018,7]
[313755931,1707677449147,-765.39669,0.00032018,7]
[313755932,1707677449155,-765.39669,0.00032018,7]
[313755933,1707677449165,-250.254054,0.00032018,7]
[313755934,1707677449174,-2148.5816134,0.0003202,2]
[313755935,1707677449183,-201420.6624952,0.0003202,2]
[313755936,1707677449192,-1068.930946,0.0003202,7]
[313755937,1707677449201,-1068.930946,0.0003202,7]
[313755938,1707677449210,-459.130846,0.0003202,7]
[313755939,1707677449219,-151.0,0.0003202,7]
[313755940,1707677449228,-459.130846,0.0003202,7]
[313755941,1707677449237,-151.0,0.0003202,7]
[313755942,1707677449248,-9360.766704,0.0003202,7]
[313755943,1707677449257,-9360.766704,0.0003202,7]
[313755944,1707677449266,-397.927756,0.0003202,7]
[313755945,1707677449275,-151.0,0.0003202,7]
[313755946,1707677449284,-397.927756,0.0003202,7]
[313755947,1707677449293,-2807.818296,0.0003202,7]
[313755948,1707677449303,-1190.21307,0.0003202,7]
[313755949,1707677449312,-2807.818296,0.0003202,7]
[313755950,1707677449321,-1190.21307,0.0003202,7]
[313755951,1707677449331,-251.760329,0.0003202,7]
[313755952,1707677449340,-251.760329,0.0003202,7]
[313755953,1707677449349,-151.0,0.0003202,7]
[313755954,1707677449358,-214.615376,0.0003202,7]
[313755955,1707677449367,-151.0,0.0003202,7]
[313755956,1707677449377,-214.615376,0.0003202,7]
[313755957,1707677449386,-176.840661,0.0003202,7]
[313755958,1707677449396,-408.33453,0.0003202,7]
[313755959,1707677449405,-408.33453,0.0003202,7]
[313755960,1707677449415,-9500.0,0.0003202,7]
[313755961,1707677449424,-9500.0,0.0003202,7]
[313755962,1707677449433,-178.042327,0.0003202,7]
[313755963,1707677449443,-178.042327,0.0003202,7]
[313755964,1707677449452,-2431.212968,0.0003202,7]
[313755965,1707677449461,-2431.212968,0.0003202,7]
[313755966,1707677449470,-151.0,0.0003202,7]
[313755967,1707677449479,-151.0,0.0003202,7]
[313755968,1707677449489,-151.0,0.0003202,7]
[313755969,1707677449498,-191.672687,0.0003202,7]
[313755970,1707677449507,-191.672687,0.0003202,7]
[313755971,1707677449517,-1978.648104,0.0003202,7]
[313755972,1707677449526,-1978.648104,0.0003202,7]
[313755973,1707677449537,-765.39669,0.0003202,7]
[313755974,1707677449550,-250.254054,0.0003202,7]
[313755975,1707677449559,-765.39669,0.0003202,7]
[313755976,1707677449569,-427.99271515,0.0003204,2]
[313755977,1707677449578,-6601.0723007,0.00032062,2]
[313755978,1707677449589,-507.6682835,0.00032062,2]
[313755979,1707677449598,-185.619402,0.00032084,7]
[313755980,1707677449607,-185.619402,0.00032084,7]
[313755981,1707677449617,-151.0,0.00032084,7]
[313755982,1707677449626,-151.0,0.00032084,7]
[313755983,1707677449636,-3000.0,0.0003215,2]
[313755984,1707677449646,-200.0,0.000322,5]
[313755985,1707677449655,-153.74,0.000322,2]
[313755986,1707677449664,-153.74,0.000322,2]
[313755987,1707677449675,-153.74,0.000322,2]
[313755988,1707677449684,-153.74,0.000322,2]
[313755989,1707677449693,-151.0,0.00032203,120]
[313755990,1707677449702,-215.48223875,0.00032246,4]
[313755991,1707677449712,-292.63912278,0.00032246,4]
[313755992,1707677449721,-2788.35047104,0.00032246,4]
[313755993,1707677449731,-273.53730368,0.00032247,4]
[313755994,1707677449740,-1754.29234065,0.0003231,4]
[313755995,1707677449749,-185.27,0.00032328,2]
[313755996,1707677449758,-150.0,0.00032444,2]
[313755997,1707677449768,-453.0,0.00032558,2]
[313755998,1707677449778,-151.0,0.0003257,7]
[313755999,1707677449787,-151.0,0.0003257,7]
[313756000,1707677449796,-151.0,0.0003257,7]
[313756001,1707677449806,-151.0,0.0003257,7]
[313756002,1707677449815,-151.0,0.0003257,7]
[313756003,1707677449824,-151.0,0.0003257,7]
[313756004,1707677449834,-151.0,0.0003257,7]
[313756005,1707677449843,-152.0,0.00032626,5]
[313756006,1707677449852,-200.0,0.000327,5]
[313756007,1707677449861,-150.0,0.00032833,2]
[313756008,1707677449871,-150.0,0.00032833,2]
[313756009,1707677449880,-150.0,0.00032833,2]
[313756010,1707677449889,-150.0,0.00032833,2]
[313756011,1707677449898,-151.0,0.0003286,30]
[313756012,1707677449907,-150.67425453,0.00032877,2]
[313756013,1707677449916,-200.0,0.00032877,2]
[313756014,1707677449925,-630.77,0.0003288,2]
[313756016,1707677449934,-630.77,0.0003288,2]
[313756018,1707677449943,-630.77,0.0003288,2]
[313756020,1707677449952,-630.77,0.0003288,2]
[313756022,1707677449961,-630.77,0.0003288,2]
[313756024,1707677449970,-1754.29234065,0.00032913,4]
[313756026,1707677449979,-531.8411767,0.00032969,2]
[313756028,1707677449988,-1167.91680649,0.0003298,4]
[313756030,1707677449998,-630.0,0.0003298,120]
[313756032,1707677450007,-2000.0,0.00033,2]
[313756034,1707677450016,-1000.0,0.00033,2]
[313756036,1707677450025,-1450.0,0.00033,3]
[313756038,1707677450036,-282.19441718,0.00033,2]
[313756039,1707677450045,-150.0,0.00033021,2]
[313756041,1707677450054,-512.39436539,0.00033026,2]
[313756043,1707677450064,-1000.0,0.00033055,7]
[313756045,1707677450073,-1000.0,0.00033055,7]
[313756047,1707677450082,-1000.0,0.00033055,7]
[313756048,1707677450092,-1000.0,0.00033074,7]
[313756050,1707677450101,-200.0,0.000332,6]
[313756052,1707677450111,-1000.0,0.00033233,7]
[313756054,1707677450121,-1000.0,0.00033246,7]
[313756056,1707677450130,-1000.0,0.0003326,7]
[313756058,1707677450140,-500.0,0.00033296,10]
[313756060,1707677450149,-1000.0,0.000333,7]
[313756062,1707677450159,-1000.0,0.00033303,7]
[313756064,1707677450169,-1000.0,0.00033324,7]
[313756066,1707677450177,-1000.0,0.00033347,7]
[313756068,1707677450187,-1000.0,0.0003335,7]
[313756070,1707677450197,-1000.0,0.00033358,7]
[313756072,1707677450206,-1000.0,0.00033363,7]
[313756074,1707677450216,-1000.0,0.00033363,7]
[313756076,1707677450227,-1000.0,0.00033368,7]
[313756078,1707677450236,-548.4,0.000335,2]
[313756080,1707677450246,-548.4,0.000335,2]
[313756082,1707677450255,-548.4,0.000335,2]
[313756084,1707677450265,-548.4,0.000335,2]
[313756086,1707677450275,-548.4,0.000335,2]
[313756088,1707677450288,-548.4,0.000335,2]
[313756090,1707677450298,-548.4,0.000335,2]
[313756092,1707677450308,-548.4,0.000335,2]
[313756094,1707677450318,-548.4,0.000335,2]
[313756096,1707677450328,-548.4,0.000335,2]
[313756098,1707677450338,-548.4,0.000335,2]
[313756100,1707677450348,-548.4,0.000335,2]
[313756102,1707677450357,-548.4,0.000335,2]
[313756103,1707677450367,-548.4,0.000335,2]
[313756105,1707677450377,-548.4,0.000335,2]
[313756107,1707677450386,-548.4,0.000335,2]
[313756109,1707677450396,-548.4,0.000335,2]
[313756111,1707677450405,-548.4,0.000335,2]
[313756113,1707677450416,-548.4,0.000335,2]
[313756115,1707677450426,-548.4,0.000335,2]
[313756117,1707677450435,-1754.29234065,0.00033515,5]
[313756119,1707677450445,-151.0,0.00033531,7]
[313756121,1707677450454,-2521.52255806,0.00033566,2]
[313756123,1707677450463,-176977.65141524,0.00033569,10]
[313756295,1707677452273,-386.25421696,0.00030406,4]
[313756298,1707677452284,-144.72578304,0.00030407,3]
[313756300,1707677452296,-39.19441761,0.00030407,3]
[313756302,1707677452305,-250.254054,0.00031547,7]
[313756304,1707677452315,-250.254054,0.000318,7]
[313756306,1707677452324,-760.0,0.00031879,2]
[313756308,1707677452334,-153.237,0.00032012,7]
[313756310,1707677452342,-250.254054,0.00032018,7]
[313756312,1707677452351,-23022.34858476,0.00033569,10]
[313756314,1707677452360,-151.0,0.00033569,7]
[313756316,1707677452369,-151.0,0.00033569,7]
[313756318,1707677452378,-151.0,0.00033569,7]
[313756320,1707677452387,-151.0,0.00033569,7]
[313756322,1707677452396,-151.0,0.00033569,7]
[313756324,1707677452405,-156.411887,0.00033569,7]
[313756326,1707677452414,-185.619402,0.00033569,7]
[313756328,1707677452423,-185.619402,0.00033569,7]
[313756329,1707677452432,-151.0,0.00033569,7]
[313756332,1707677452442,-151.0,0.00033569,7]
[313756334,1707677452451,-242.796643,0.00033569,7]
[313756336,1707677452460,-242.796643,0.00033569,7]
[313756338,1707677452469,-333.775712,0.00033569,7]
[313756339,1707677452478,-333.775712,0.00033569,7]
[313756341,1707677452487,-310.529724,0.00033569,7]
[313756343,1707677452496,-310.529724,0.00033569,7]
[313756345,1707677452505,-350.115448,0.00033569,7]
[313756347,1707677452515,-350.115448,0.00033569,7]
[313756349,1707677452524,-234.196225,0.00033569,7]
[313756352,1707677452536,-234.196225,0.00033569,7]
[313756354,1707677452548,-309.955609,0.00033569,7]
[313756356,1707677452557,-309.955609,0.00033569,7]
[313756358,1707677452566,-452.089298,0.00033569,7]
[313756360,1707677452575,-452.089298,0.00033569,7]
[313756362,1707677452585,-185.414344,0.00033569,7]
[313756363,1707677452594,-185.414344,0.00033569,7]
[313756365,1707677452603,-1929.541419,0.00033569,7]
[313756367,1707677452612,-1929.541419,0.00033569,7]
[313756370,1707677452623,-1359.522663,0.00033569,7]
[313756372,1707677452632,-151.0,0.00033569,7]
[313756374,1707677452644,-1359.522663,0.00033569,7]
[313756376,1707677452655,-349.640646,0.00033569,7]
[313756378,1707677452664,-349.640646,0.00033569,7]
[313756380,1707677452673,-381.385212,0.00033569,7]
[313756382,1707677452682,-381.385212,0.00033569,7]
[313756384,1707677452692,-375.080313,0.00033569,7]
[313756386,1707677452701,-375.080313,0.00033569,7]
[313756388,1707677452710,-808.760675,0.00033569,7]
[313756390,1707677452719,-808.760675,0.00033569,7]
[313756392,1707677452729,-599.409437,0.00033569,7]
[313756394,1707677452738,-599.409437,0.00033569,7]
[313756396,1707677452747,-512.611865,0.00033569,7]
[313756398,1707677452757,-512.611865,0.00033569,7]
[313756400,1707677452766,-151.0,0.00033569,7]
[313756402,1707677452775,-151.0,0.00033569,7]
[313756404,1707677452786,-208.558557,0.00033569,7]
[313756406,1707677452795,-208.558557,0.00033569,7]
[313756408,1707677452803,-151.0,0.00033569,7]
[313756410,1707677452812,-215.738843,0.00033569,7]
[313756412,1707677452822,-215.738843,0.00033569,7]
[313756414,1707677452830,-243.577002,0.00033569,7]
[313756416,1707677452839,-243.577002,0.00033569,7]
[313756418,1707677452848,-151.0,0.00033569,7]
[313756420,1707677452858,-151.0,0.00033569,7]
[313756421,1707677452867,-237.875454,0.00033569,7]
[313756423,1707677452876,-151.0,0.00033569,7]
[313756425,1707677452885,-1068.930946,0.00033569,7]
[313756428,1707677452896,-1068.930946,0.00033569,7]
[313756430,1707677452905,-459.130846,0.00033569,7]
[313756432,1707677452915,-151.0,0.00033569,7]
[313756434,1707677452924,-459.130846,0.00033569,7]
[313756436,1707677452933,-179.655654,0.00033569,7]
[313756438,1707677452943,-9360.766704,0.00033569,7]
[313756440,1707677452952,-9360.766704,0.00033569,7]
[313756442,1707677452960,-397.927756,0.00033569,7]
[313756444,1707677452970,-161.224608,0.00033569,7]
[313756446,1707677452979,-397.927756,0.00033569,7]
[313756448,1707677452988,-2393.94948394,0.00033569,7]
[313756451,1707677453012,-250.254054,0.0003202,7]
[313756453,1707677453021,-413.86881206,0.00033569,7]
[313756455,1707677453031,-269.74807583,0.00033569,7]
[313756457,1707677453043,-273.11552272,0.00033569,7]
[313756542,1707677463752,206.0,0.00022159,2]
[313756557,1707677647141,3432.68479276,0.0002,2]
[313756558,1707677657766,216.24,0.0002131,2]
[313756564,1707677731606,300.0,0.00022,2]
[313756568,1707677799609,296.53829154,0.00022,2]
[313756572,1707677847944,187.02,0.00022083,2]
[313756573,1707677850399,250.0,0.00022083,2]
[313756577,1707677895720,250.0,0.00021919,2]
[313756578,1707677902938,507.76294868,0.00022,2]
[313756579,1707677905539,200.0,0.00021919,2]
[313756582,1707677929937,392.0,0.00021957,2]
[313756584,1707677943238,343.12,0.00021919,2]
[313756587,1707677982663,164.97,0.00021956,2]
[313756588,1707677986582,176.62,0.00016712,2]
[313756592,1707678039716,267.78,0.00021873,2]
[313756598,1707678123815,297.19,0.00019801,2]
[313756599,1707678124005,297.19,0.00022065,2]
[313756601,1707678133868,169.02,0.00021727,2]
[313756605,1707678191159,165.89351967,0.00022338,2]
[313756607,1707678197751,222.38,0.00021717,2]
[313756609,1707678227270,168.17,0.00022366,2]
[313756611,1707678239576,2000.0,0.00021706,2]
[313756612,1707678242907,331.14,0.00021859,2]
[313756613,1707678242977,331.14,0.00021919,2]
[313756614,1707678243144,331.14,0.00021979,2]
[313756615,1707678243368,331.14,0.00022039,2]
[313756616,1707678243567,331.14,0.00022099,2]
[313756617,1707678243813,331.14,0.00022159,2]
[313756618,1707678244081,331.14,0.00022219,2]
[313756619,1707678244245,331.14,0.00022279,2]
[313756620,1707678244559,331.14,0.00022339,2]
[313756621,1707678244829,331.14,0.00022399,2]
[313756623,1707678271367,166.7,0.0002168,2]
[313756625,1707678283835,230.48,0.0002168,2]
[313756628,1707678312377,250.0,0.00021918,2]
[313756632,1707678362130,186.98,0.0002168,2]
[313756635,1707678410487,686.4,0.0002168,2]
[313756636,1707678417094,238.03,0.00021675,2]
[313756639,1707678452833,174.05605689,0.00022318,2]
[313756643,1707678510745,223.15,0.00021673,2]
[313756646,1707678549253,150.0,0.00021651,2]